fUST/lending_fUST_20250724
["ID","MTS","AMOUNT","RATE_DAILY","PERIOD"]
[374569822,1753359069395,-3445.18,0.00023013,2]
[374569823,1753359069404,-626.2,0.00023013,2]
[374569824,1753359069414,-1738.24,0.00023013,2]
[374569825,1753359069424,-460.0,0.00023013,2]
[374569826,1753359069434,-460.0,0.00023013,2]
[374569827,1753359069443,-1496.43,0.00023013,2]
[374569828,1753359069453,-460.0,0.00023013,2]
[374569829,1753359069464,-491.05983361,0.00023013,2]
[374569830,1753359069474,-594.34,0.00023013,2]
[374569831,1753359069484,-163.0,0.00023014,7]
[374569832,1753359069494,-3000.0,0.0002302,2]
[374569833,1753359069504,-3000.0,0.0002303,2]
[374569834,1753359069513,-1429.64,0.0002303,4]
[374569835,1753359069523,-3000.0,0.0002304,2]
[374569836,1753359069533,-151.342857,0.0002304,7]
[374569837,1753359069543,-151.342857,0.0002304,7]
[374569838,1753359069552,-314.805231,0.0002304,7]
[374569839,1753359069562,-314.805231,0.0002304,7]
[374569840,1753359069572,-3000.0,0.0002305,2]
[374569841,1753359069581,-151.0,0.0002305,7]
[374569842,1753359069591,-3000.0,0.0002306,2]
[374569843,1753359069601,-500.0,0.0002306,2]
[374569844,1753359069611,-3000.0,0.0002307,2]
[374569845,1753359069621,-3000.0,0.0002308,2]
[374569846,1753359069632,-292.055637,0.00023089,8]
[374569847,1753359069642,-3000.0,0.0002309,2]
[374569848,1753359069652,-3000.0,0.000231,2]
[374569849,1753359069661,-3000.0,0.0002311,2]
[374569850,1753359069671,-3000.0,0.0002312,2]
[374569851,1753359069681,-159.9507963,0.00023125,2]
[374569852,1753359069690,-159.9507963,0.00023125,2]
[374569853,1753359069700,-319.9015926,0.00023125,2]
[374569854,1753359069709,-319.791537,0.00023125,2]
[374569855,1753359069719,-1154.905217,0.00023125,2]
[374569856,1753359069728,-3000.0,0.0002313,2]
[374569857,1753359069738,-1429.64,0.0002313,6]
[374569858,1753359069748,-3000.0,0.0002314,2]
[374569859,1753359069757,-3000.0,0.0002315,2]
[374569860,1753359069767,-3000.0,0.0002316,2]
[374569861,1753359069778,-3000.0,0.0002317,2]
[374569862,1753359069789,-516.15000208,0.00023174,2]
[374569863,1753359069798,-1000.0,0.00023174,2]
[374569864,1753359069807,-3000.0,0.0002318,2]
[374569865,1753359069818,-272.6,0.00023181,6]
[374569866,1753359069828,-3000.0,0.0002319,2]
[374569867,1753359069838,-223.0315306,0.0002319,2]
[374569868,1753359069848,-3000.0,0.000232,2]
[374569869,1753359069858,-3000.0,0.0002321,2]
[374569870,1753359069869,-2101.69450456,0.0002321,8]
[374569871,1753359069879,-3000.0,0.0002322,2]
[374569872,1753359069889,-3000.0,0.0002323,2]
[374569873,1753359069906,-1429.64,0.0002323,4]
[374569874,1753359069919,-3000.0,0.0002324,2]
[374569875,1753359069930,-3000.0,0.0002325,2]
[374569876,1753359069940,-500.0,0.00023256,2]
[374569877,1753359069950,-3000.0,0.0002326,2]
[374569878,1753359069961,-179.463855,0.0002326,7]
[374569879,1753359069970,-179.463855,0.0002326,7]
[374569880,1753359069980,-3000.0,0.0002327,2]
[374569881,1753359069990,-460.0,0.00023273,2]
[374569882,1753359069999,-176.50565974,0.00023273,2]
[374569883,1753359070008,-151.0,0.00023273,7]
[374569884,1753359070018,-151.0,0.00023273,7]
[374569885,1753359070028,-295.0,0.00023279,2]
[374569886,1753359070038,-3150.0,0.0002328,2]
[374569887,1753359070047,-151.0,0.00023287,7]
[374569888,1753359070057,-460.0,0.00023287,2]
[374569889,1753359070067,-460.0,0.00023287,2]
[374569890,1753359070077,-504.74115808,0.00023287,2]
[374569891,1753359070087,-225.85,0.00023287,2]
[374569892,1753359070097,-460.0,0.00023287,2]
[374569893,1753359070108,-460.0,0.00023287,2]
[374569894,1753359070118,-460.0,0.00023287,2]
[374569895,1753359070129,-530.38,0.00023287,2]
[374569896,1753359070268,-598.54,0.00023287,2]
[374569897,1753359070279,-589.49,0.00023287,2]
[374569898,1753359070288,-360.0,0.00023287,2]
[374569899,1753359070298,-460.0,0.00023287,2]
[374569900,1753359070308,-2288.96,0.00023287,2]
[374569901,1753359070318,-3226.86,0.00023287,2]
[374569902,1753359070327,-549.71,0.00023287,2]
[374569903,1753359070337,-460.0,0.00023287,2]
[374569904,1753359070346,-460.0,0.00023287,2]
[374569905,1753359070355,-1346.17,0.00023287,2]
[374569906,1753359070365,-460.0,0.00023287,2]
[374569907,1753359070375,-1622.45,0.00023287,2]
[374569908,1753359070384,-501.83,0.00023287,2]
[374569909,1753359070394,-558.57,0.00023287,2]
[374569910,1753359070403,-1151.1,0.00023287,2]
[374569911,1753359070412,-3987.66,0.00023287,2]
[374569912,1753359070422,-1227.26,0.00023287,2]
[374569913,1753359070431,-599.14,0.00023287,2]
[374569914,1753359070440,-1102.32,0.00023287,2]
[374569915,1753359070449,-643.03,0.00023287,2]
[374569916,1753359070459,-721.5,0.00023287,2]
[374569917,1753359070468,-536.66,0.00023287,2]
[374569918,1753359070477,-460.0,0.00023287,2]
[374569919,1753359070486,-1239.72,0.00023287,2]
[374569920,1753359070495,-474.28,0.00023287,2]
[374569921,1753359070506,-695.52,0.00023287,2]
[374569922,1753359070515,-614.93,0.00023287,2]
[374569923,1753359070525,-602.97,0.00023287,2]
[374569924,1753359070535,-460.0,0.00023287,2]
[374569925,1753359070544,-547.38,0.00023287,2]
[374569926,1753359070554,-460.0,0.00023287,2]
[374569927,1753359070563,-570.67,0.00023287,2]
[374569928,1753359070572,-2410.32,0.00023287,2]
[374569929,1753359070582,-573.06,0.00023287,2]
[374569930,1753359070591,-573.59,0.00023287,2]
[374569931,1753359070601,-701.0,0.00023287,2]
[374569932,1753359070611,-460.0,0.00023287,2]
[374569933,1753359070620,-1810.46,0.00023287,2]
[374569934,1753359070631,-5756.37,0.00023287,2]
[374569935,1753359070641,-460.0,0.00023287,2]
[374569936,1753359070651,-460.0,0.00023287,2]
[374569937,1753359070660,-707.55,0.00023287,2]
[374569938,1753359070670,-460.0,0.00023287,2]
[374569939,1753359070679,-959.34,0.00023287,2]
[374569940,1753359070687,-944.6,0.00023287,2]
[374569941,1753359070697,-460.0,0.00023287,2]
[374569942,1753359070707,-1286.44,0.00023287,2]
[374569943,1753359070716,-533.7,0.00023287,2]
[374569944,1753359070726,-460.0,0.00023287,2]
[374569945,1753359070736,-764.53,0.00023287,2]
[374569946,1753359070745,-460.0,0.00023287,2]
[374569947,1753359070755,-2933.32,0.00023287,2]
[374569948,1753359070763,-479.16,0.00023287,2]
[374569949,1753359070774,-575.0,0.00023287,2]
[374569950,1753359070785,-3445.18,0.00023287,2]
[374569951,1753359070794,-626.2,0.00023287,2]
[374569952,1753359070804,-460.0,0.00023287,2]
[374569953,1753359070813,-1738.24,0.00023287,2]
[374569954,1753359070825,-460.0,0.00023287,2]
[374569955,1753359070834,-1496.43,0.00023287,2]
[374569956,1753359070844,-460.0,0.00023287,2]
[374569957,1753359070854,-594.34,0.00023287,2]
[374569958,1753359070864,-151.0,0.00023288,7]
[374569959,1753359070877,-151.0,0.00023288,2]
[374569960,1753359070886,-679.0,0.00023288,2]
[374569961,1753359070896,-151.0,0.00023288,2]
[374569962,1753359070906,-151.0,0.00023288,2]
[374569963,1753359070916,-151.0,0.00023288,2]
[374569964,1753359070925,-151.0,0.00023288,2]
[374569965,1753359070934,-151.0,0.00023288,2]
[374569966,1753359070944,-500.0,0.00023288,2]
[374569967,1753359070957,-151.0,0.00023288,2]
[374569968,1753359070967,-151.0,0.00023288,2]
[374569969,1753359070977,-201.04954806,0.00023288,2]
[374569970,1753359070986,-500.0,0.00023288,2]
[374569971,1753359070996,-151.0,0.00023288,2]
[374569972,1753359071006,-151.0,0.00023288,2]
[374569973,1753359071015,-200.27697752,0.00023288,2]
[374569974,1753359071026,-519.0,0.00023288,2]
[374569975,1753359071035,-151.0,0.000233,7]
[374569976,1753359071044,-961.06,0.000233,2]
[374569977,1753359071054,-289.549182,0.000233,7]
[374569978,1753359071063,-289.549182,0.000233,7]
[374569979,1753359071073,-151.0,0.000233,7]
[374569980,1753359071083,-246.81665,0.000233,7]
[374569981,1753359071093,-1429.67,0.0002333,4]
[374569982,1753359071102,-168.0,0.00023365,2]
[374569983,1753359071112,-168.0,0.00023366,2]
[374569984,1753359071122,-166.67,0.00023382,2]
[374569985,1753359071134,-2101.69450456,0.00023417,9]
[374569986,1753359071144,-807.62560805,0.00023421,2]
[374569987,1753359071154,-716.77,0.00023425,7]
[374569988,1753359071163,-168.0,0.00023495,2]
[374569989,1753359071172,-1000.0,0.000235,2]
[374569990,1753359071182,-189.744645,0.000235,2]
[374569991,1753359071191,-168.0,0.00023513,2]
[374569992,1753359071201,-272.6,0.00023524,6]
[374569993,1753359071211,-716.77,0.00023525,3]
[374569994,1753359071222,-295.0,0.00023533,2]
[374569995,1753359071231,-500.0,0.0002356,2]
[374569996,1753359071241,-500.0,0.0002356,2]
[374569997,1753359071251,-500.0,0.0002356,2]
[374569998,1753359071260,-500.0,0.0002356,2]
[374569999,1753359071270,-484.65292561,0.0002356,2]
[374570000,1753359071280,-151.0,0.00023561,7]
[374570001,1753359071289,-151.0,0.00023561,7]
[374570002,1753359071298,-460.0,0.00023561,2]
[374570003,1753359071308,-460.0,0.00023561,2]
[374570004,1753359071317,-460.0,0.00023561,2]
[374570005,1753359071328,-460.0,0.00023561,2]
[374570006,1753359071338,-151.342857,0.00023561,7]
[374570007,1753359071347,-460.0,0.00023561,2]
[374570008,1753359071357,-151.342857,0.00023561,7]
[374570009,1753359071367,-530.38,0.00023561,2]
[374570010,1753359071377,-598.54,0.00023561,2]
[374570011,1753359071387,-589.49,0.00023561,2]
[374570012,1753359071397,-531.73,0.00023561,2]
[374570013,1753359071407,-2288.96,0.00023561,2]
[374570014,1753359071416,-3226.86,0.00023561,2]
[374570015,1753359071426,-549.71,0.00023561,2]
[374570016,1753359071435,-460.0,0.00023561,2]
[374570017,1753359071446,-460.0,0.00023561,2]
[374570018,1753359071455,-1346.17,0.00023561,2]
[374570019,1753359071463,-460.0,0.00023561,2]
[374570020,1753359071473,-1622.45,0.00023561,2]
[374570021,1753359071483,-501.83,0.00023561,2]
[374570022,1753359071493,-558.57,0.00023561,2]
[374570023,1753359071503,-1151.1,0.00023561,2]
[374570024,1753359071513,-3987.66,0.00023561,2]
[374570025,1753359071524,-1227.26,0.00023561,2]
[374570026,1753359071534,-599.14,0.00023561,2]
[374570027,1753359071544,-1102.32,0.00023561,2]
[374570028,1753359071554,-643.03,0.00023561,2]
[374570029,1753359071565,-721.5,0.00023561,2]
[374570030,1753359071576,-536.66,0.00023561,2]
[374570031,1753359071586,-460.0,0.00023561,2]
[374570032,1753359071596,-1239.72,0.00023561,2]
[374570033,1753359071605,-474.28,0.00023561,2]
[374570034,1753359071615,-695.52,0.00023561,2]
[374570035,1753359071715,-614.93,0.00023561,2]
[374570036,1753359071725,-602.97,0.00023561,2]
[374570037,1753359071735,-460.0,0.00023561,2]
[374570038,1753359071745,-547.38,0.00023561,2]
[374570039,1753359071755,-460.0,0.00023561,2]
[374570040,1753359071764,-570.67,0.00023561,2]
[374570041,1753359071775,-2410.32,0.00023561,2]
[374570042,1753359071786,-573.06,0.00023561,2]
[374570043,1753359071796,-573.59,0.00023561,2]
[374570044,1753359071805,-363.6007509,0.00023561,2]
[374570045,1753359071815,-701.0,0.00023561,2]
[374570046,1753359071825,-1810.46,0.00023561,2]
[374570047,1753359071835,-5756.37,0.00023561,2]
[374570048,1753359071845,-460.0,0.00023561,2]
[374570049,1753359071855,-460.0,0.00023561,2]
[374570050,1753359071866,-707.55,0.00023561,2]
[374570051,1753359071875,-600.78355117,0.00023561,2]
[374570052,1753359071885,-944.6,0.00023561,2]
[374570053,1753359071894,-959.34,0.00023561,2]
[374570054,1753359071903,-460.0,0.00023561,2]
[374570055,1753359071913,-314.805231,0.00023561,7]
[374570056,1753359071923,-1286.44,0.00023561,2]
[374570057,1753359071933,-533.7,0.00023561,2]
[374570058,1753359071943,-314.805231,0.00023561,7]
[374570059,1753359071952,-460.0,0.00023561,2]
[374570060,1753359071962,-764.53,0.00023561,2]
[374570061,1753359071972,-460.0,0.00023561,2]
[374570062,1753359071982,-2933.32,0.00023561,2]
[374570063,1753359071991,-479.16,0.00023561,2]
[374570064,1753359072001,-575.0,0.00023561,2]
[374570065,1753359072012,-3445.18,0.00023561,2]
[374570066,1753359072022,-626.2,0.00023561,2]
[374570067,1753359072032,-460.0,0.00023561,2]
[374570068,1753359072042,-1738.24,0.00023561,2]
[374570069,1753359072052,-555.19072505,0.00023561,2]
[374570070,1753359072061,-1496.43,0.00023561,2]
[374570071,1753359072071,-460.0,0.00023561,2]
[374570072,1753359072081,-295.0,0.00023561,2]
[374570073,1753359072091,-151.98645579,0.00023562,2]
[374570074,1753359072101,-679.0,0.00023562,2]
[374570075,1753359072111,-151.0,0.00023562,2]
[374570076,1753359072120,-151.0,0.00023562,2]
[374570077,1753359072132,-151.0,0.00023562,2]
[374570078,1753359072141,-500.0,0.00023562,2]
[374570079,1753359072151,-151.0,0.00023562,2]
[374570080,1753359072161,-500.0,0.00023562,2]
[374570081,1753359072171,-151.0,0.00023562,2]
[374570082,1753359072182,-151.0,0.00023562,2]
[374570083,1753359072192,-519.0,0.00023562,2]
[374570084,1753359072203,-150.0,0.00023573,2]
[374570085,1753359072214,-1101.33,0.000236,7]
[374570086,1753359072224,-34169.55,0.000236,2]
[374570087,1753359072235,-151.0,0.000236,7]
[374570088,1753359072246,-151.0,0.000236,7]
[374570089,1753359072257,-2101.69450456,0.00023624,9]
[374570090,1753359072267,-716.77,0.00023625,7]
[374570091,1753359072278,-500.0,0.00023722,2]
[374570092,1753359072289,-716.77,0.00023725,4]
[374570093,1753359072299,-151.0,0.00023725,7]
[374570094,1753359072309,-151.0,0.00023725,7]
[374570095,1753359072318,-151.0,0.00023725,7]
[374570096,1753359072328,-295.0,0.0002373,2]
[374570097,1753359072338,-407.0,0.00023733,2]
[374570098,1753359072347,-421.197,0.00023733,2]
[374570099,1753359072366,-5745.54231414,0.00023735,2]
[374570100,1753359072386,-151.0,0.000238,8]
[374570101,1753359072404,-151.0,0.00023808,7]
[374570102,1753359072423,-151.0,0.00023808,7]
[374570103,1753359072444,-151.0,0.00023808,7]
[374570104,1753359072461,-384.974475,0.0002381,7]
[374570105,1753359072480,-384.974475,0.0002381,7]
[374570106,1753359072495,-151.0,0.0002381,7]
[374570107,1753359072511,-151.0,0.0002381,7]
[374570108,1753359072529,-151.0,0.0002381,7]
[374570109,1753359072550,-151.0,0.0002381,7]
[374570110,1753359072563,-251.114687,0.0002381,7]
[374570111,1753359072581,-179.463855,0.00023821,7]
[374570112,1753359072597,-179.463855,0.00023821,7]
[374570113,1753359072614,-716.77,0.00023825,7]
[374570114,1753359072628,-2101.69450456,0.00023831,10]
[374570115,1753359072642,-460.0,0.00023835,2]
[374570116,1753359072656,-460.0,0.00023835,2]
[374570117,1753359072671,-460.0,0.00023835,2]
[374570118,1753359072686,-460.0,0.00023835,2]
[374570119,1753359072701,-460.0,0.00023835,2]
[374570120,1753359072716,-530.38,0.00023835,2]
[374570121,1753359072730,-598.54,0.00023835,2]
[374570122,1753359072744,-589.49,0.00023835,2]
[374570123,1753359072759,-2288.96,0.00023835,2]
[374570124,1753359072773,-3226.86,0.00023835,2]
[374570125,1753359072790,-549.71,0.00023835,2]
[374570126,1753359072804,-460.0,0.00023835,2]
[374570127,1753359072820,-460.0,0.00023835,2]
[374570128,1753359072834,-1346.17,0.00023835,2]
[374570129,1753359072849,-460.0,0.00023835,2]
[374570130,1753359072865,-1622.45,0.00023835,2]
[374570131,1753359072881,-501.83,0.00023835,2]
[374570132,1753359072895,-558.57,0.00023835,2]
[374570133,1753359072907,-1151.1,0.00023835,2]
[374570134,1753359072916,-3987.66,0.00023835,2]
[374570135,1753359072925,-1227.26,0.00023835,2]
[374570136,1753359072934,-599.14,0.00023835,2]
[374570137,1753359072945,-1102.32,0.00023835,2]
[374570138,1753359072955,-643.03,0.00023835,2]
[374570139,1753359072964,-721.5,0.00023835,2]
[374570140,1753359072973,-536.66,0.00023835,2]
[374570141,1753359072985,-460.0,0.00023835,2]
[374570142,1753359072995,-1239.72,0.00023835,2]
[374570143,1753359073005,-474.28,0.00023835,2]
[374570144,1753359073014,-695.52,0.00023835,2]
[374570145,1753359073024,-614.93,0.00023835,2]
[374570146,1753359073033,-602.97,0.00023835,2]
[374570147,1753359073043,-460.0,0.00023835,2]
[374570148,1753359073053,-547.38,0.00023835,2]
[374570149,1753359073062,-460.0,0.00023835,2]
[374570150,1753359073072,-570.67,0.00023835,2]
[374570151,1753359073082,-2410.32,0.00023835,2]
[374570152,1753359073093,-573.06,0.00023835,2]
[374570153,1753359073102,-573.59,0.00023835,2]
[374570154,1753359073112,-701.0,0.00023835,2]
[374570155,1753359073122,-1810.46,0.00023835,2]
[374570156,1753359073132,-5756.37,0.00023835,2]
[374570157,1753359073142,-460.0,0.00023835,2]
[374570158,1753359073151,-460.0,0.00023835,2]
[374570159,1753359073161,-707.55,0.00023835,2]
[374570160,1753359073171,-944.6,0.00023835,2]
[374570161,1753359073181,-959.34,0.00023835,2]
[374570162,1753359073190,-460.0,0.00023835,2]
[374570163,1753359073455,-1286.44,0.00023835,2]
[374570164,1753359073471,-533.7,0.00023835,2]
[374570165,1753359073481,-460.0,0.00023835,2]
[374570166,1753359073491,-764.53,0.00023835,2]
[374570167,1753359073501,-460.0,0.00023835,2]
[374570168,1753359073510,-151.0,0.00023835,7]
[374570169,1753359073520,-2933.32,0.00023835,2]
[374570170,1753359073530,-575.0,0.00023835,2]
[374570171,1753359073540,-3445.18,0.00023835,2]
[374570172,1753359073549,-479.16,0.00023835,2]
[374570173,1753359073559,-151.0,0.00023835,7]
[374570174,1753359073569,-626.2,0.00023835,2]
[374570175,1753359073578,-179.57,0.00023835,2]
[374570176,1753359073588,-1738.24,0.00023835,2]
[374570177,1753359073597,-1496.43,0.00023835,2]
[374570178,1753359073607,-460.0,0.00023835,2]
[374570179,1753359073616,-679.0,0.00023836,2]
[374570180,1753359073626,-198.0,0.00023836,2]
[374570181,1753359073636,-179.3227898,0.00023836,2]
[374570182,1753359073646,-184.12379564,0.00023836,2]
[374570183,1753359073655,-497.23984541,0.00023836,2]
[374570184,1753359073665,-151.0,0.00023836,2]
[374570185,1753359073675,-500.0,0.00023836,2]
[374570186,1753359073685,-173.7533436,0.00023836,2]
[374570187,1753359073695,-151.0,0.00023836,2]
[374570188,1753359073705,-519.0,0.00023836,2]
[374570189,1753359073714,-166.67,0.00023842,2]
[374570190,1753359073724,-272.6,0.00023868,6]
[374570191,1753359073734,-295.0,0.0002388,2]
[374570192,1753359073743,-429.7456075,0.00023888,2]
[374570193,1753359073752,-200.0,0.000239,2]
[374570194,1753359073763,-643.0,0.000239,2]
[374570195,1753359073774,-164.47661481,0.000239,2]
[374570196,1753359073788,-716.77,0.00023925,5]
[374570197,1753359073798,-160.78897,0.00023976,7]
[374570198,1753359073808,-160.78897,0.00023976,7]
[374570199,1753359073819,-151.0,0.00023976,7]
[374570200,1753359073829,-166.172952,0.00023976,7]
[374570201,1753359073839,-166.172952,0.00023976,7]
[374570202,1753359073849,-2000.0,0.00024,3]
[374570203,1753359073858,-2000.0,0.00024,7]
[374570204,1753359073867,-1500.0,0.00024,7]
[374570205,1753359073876,-3270.13,0.00024,14]
[374570206,1753359073887,-385.90707252,0.00024,7]
[374570207,1753359073896,-151.0,0.00024,7]
[374570208,1753359073906,-151.0,0.00024,7]
[374570209,1753359073916,-840.23756827,0.00024,7]
[374570210,1753359073925,-215.88777038,0.00024,7]
[374570211,1753359073934,-231.16387093,0.00024,7]
[374570212,1753359073943,-160.0,0.00024,7]
[374570213,1753359073953,-526.24749348,0.00024,7]
[374570214,1753359073963,-151.0,0.00024004,7]
[374570215,1753359073972,-151.336066,0.00024017,2]
[374570216,1753359073981,-716.77,0.00024025,2]
[374570217,1753359073991,-2101.69450456,0.00024038,10]
[374570218,1753359074001,-230.0,0.00024053,2]
[374570219,1753359074011,-295.0,0.00024064,2]
[374570220,1753359074020,-151.0,0.000241,6]
[374570221,1753359074030,-151.0,0.00024109,7]
[374570222,1753359074039,-289.549182,0.00024109,7]
[374570223,1753359074048,-289.549182,0.00024109,7]
[374570224,1753359074058,-151.0,0.00024109,7]
[374570225,1753359074067,-151.0,0.00024109,7]
[374570226,1753359074077,-525.08,0.00024109,2]
[374570227,1753359074086,-460.0,0.00024109,2]
[374570228,1753359074096,-460.0,0.00024109,2]
[374570229,1753359074106,-460.0,0.00024109,2]
[374570230,1753359074115,-460.0,0.00024109,2]
[374570231,1753359074126,-530.38,0.00024109,2]
[374570232,1753359074137,-598.54,0.00024109,2]
[374570233,1753359074147,-589.49,0.00024109,2]
[374570234,1753359074157,-2288.96,0.00024109,2]
[374570235,1753359074167,-3226.86,0.00024109,2]
[374570236,1753359074177,-549.71,0.00024109,2]
[374570237,1753359074187,-209.98085329,0.00024109,2]
[374570238,1753359074197,-318.31138922,0.00024109,2]
[374570239,1753359074207,-1346.17,0.00024109,2]
[374570240,1753359074217,-460.0,0.00024109,2]
[374570241,1753359074227,-1622.45,0.00024109,2]
[374570242,1753359074237,-501.83,0.00024109,2]
[374570243,1753359074248,-558.57,0.00024109,2]
[374570244,1753359074258,-1151.1,0.00024109,2]
[374570245,1753359074268,-3987.66,0.00024109,2]
[374570246,1753359074277,-1227.26,0.00024109,2]
[374570247,1753359074287,-599.14,0.00024109,2]
[374570248,1753359074297,-1102.32,0.00024109,2]
[374570249,1753359074306,-643.03,0.00024109,2]
[374570250,1753359074316,-721.5,0.00024109,2]
[374570251,1753359074326,-536.66,0.00024109,2]
[374570252,1753359074336,-460.0,0.00024109,2]
[374570253,1753359074345,-1239.72,0.00024109,2]
[374570254,1753359074355,-474.28,0.00024109,2]
[374570255,1753359074365,-695.52,0.00024109,2]
[374570256,1753359074375,-614.93,0.00024109,2]
[374570257,1753359074386,-602.97,0.00024109,2]
[374570258,1753359074395,-460.0,0.00024109,2]
[374570259,1753359074405,-547.38,0.00024109,2]
[374570260,1753359074415,-460.0,0.00024109,2]
[374570261,1753359074425,-570.67,0.00024109,2]
[374570262,1753359074435,-2410.32,0.00024109,2]
[374570263,1753359074445,-573.06,0.00024109,2]
[374570264,1753359074454,-573.59,0.00024109,2]
[374570265,1753359074463,-701.0,0.00024109,2]
[374570266,1753359074473,-1810.46,0.00024109,2]
[374570267,1753359074484,-5756.37,0.00024109,2]
[374570268,1753359074494,-460.0,0.00024109,2]
[374570269,1753359074504,-460.0,0.00024109,2]
[374570270,1753359074514,-707.55,0.00024109,2]
[374570271,1753359074524,-959.34,0.00024109,2]
[374570272,1753359074534,-944.6,0.00024109,2]
[374570273,1753359074544,-460.0,0.00024109,2]
[374570274,1753359074554,-1286.44,0.00024109,2]
[374570275,1753359074564,-533.7,0.00024109,2]
[374570276,1753359074574,-460.0,0.00024109,2]
[374570277,1753359074584,-764.53,0.00024109,2]
[374570278,1753359074593,-460.0,0.00024109,2]
[374570279,1753359074603,-2933.32,0.00024109,2]
[374570280,1753359074612,-3445.18,0.00024109,2]
[374570281,1753359074623,-575.0,0.00024109,2]
[374570282,1753359074633,-479.16,0.00024109,2]
[374570283,1753359074643,-626.2,0.00024109,2]
[374570284,1753359074653,-1738.24,0.00024109,2]
[374570285,1753359074663,-1496.43,0.00024109,2]
[374570286,1753359074672,-460.0,0.00024109,2]
[374570287,1753359074681,-679.0,0.0002411,2]
[374570288,1753359074691,-151.0,0.0002411,2]
[374570289,1753359074702,-166.59386987,0.0002411,2]
[374570290,1753359074711,-151.0,0.0002411,2]
[374570291,1753359074721,-519.0,0.0002411,2]
[374570292,1753359074731,-279.0505042,0.00024121,2]
[374570293,1753359074740,-716.77,0.00024125,4]
[374570294,1753359074751,-811.43970814,0.00024149,2]
[374570295,1753359074762,-1011.07,0.000242,7]
[374570296,1753359074773,-150.0,0.0002421,2]
[374570297,1753359074785,-150.0,0.0002421,2]
[374570298,1753359074795,-150.0,0.0002421,2]
[374570299,1753359074805,-272.6,0.00024212,6]
[374570300,1753359074814,-151.336066,0.00024221,9]
[374570301,1753359074824,-716.77,0.00024225,5]
[374570302,1753359074834,-151.0,0.00024225,7]
[374570303,1753359074843,-2101.69450456,0.00024245,10]
[374570304,1753359074853,-295.0,0.00024257,2]
[374570305,1753359074863,-800.0,0.00024262,2]
[374570306,1753359074874,-500.0,0.00024289,2]
[374570307,1753359074886,-166.67,0.00024303,2]
[374570308,1753359074895,-150.57,0.00024306,2]
[374570309,1753359074905,-150.0,0.00024306,2]
[374570310,1753359074915,-150.0,0.00024306,2]
[374570311,1753359074925,-648.0,0.00024306,2]
[374570312,1753359074934,-2157.0,0.00024306,2]
[374570313,1753359074943,-969.0,0.00024306,2]
[374570314,1753359074953,-716.77,0.00024325,4]
[374570315,1753359074963,-151.342857,0.00024338,7]
[374570316,1753359074972,-151.342857,0.00024338,7]
[374570317,1753359074983,-314.805231,0.00024338,7]
[374570318,1753359074993,-314.805231,0.00024338,7]
[374570319,1753359075003,-500.0,0.00024369,2]
[374570320,1753359075012,-151.0,0.00024383,7]
[374570321,1753359075022,-151.0,0.00024383,7]